bitfinex/quotes_SOLUSD_20251007
["timestamp","ask_amount","ask_price","bid_price","bid_amount"]
[1759872128752,0.55,224.14,224.06,1.57211362]
[1759872128936,31.22,224.13,224.08,1.57211362]
[1759872129137,0.55,224.12,224.08,1.57211362]
[1759872129331,31.22,224.13,224.08,0.72]
[1759872129548,4.46109921,224.16,224.11,1.57211362]
[1759872129857,20.13394274,224.18,224.13,1.57211362]
[1759872129858,31.24,224.15,224.13,1.57211362]
[1759872130352,31.24,224.15,224.11,0.72]
[1759872130558,31.24,224.15,224.12,1.57211362]
[1759872131246,35.70132628,224.15,224.12,1.57211362]
[1759872132048,35.70132628,224.15,224.11,2.29211362]
[1759872133042,35.70132628,224.15,224.11,1.57211362]
[1759872133043,31.24,224.15,224.11,1.57211362]
[1759872133244,31.24,224.15,224.12,0.72]
[1759872134366,35.70131398,224.15,224.12,0.72]
[1759872134565,35.70131398,224.15,224.11,1.57211362]
[1759872135074,31.24,224.15,224.11,1.57211362]
[1759872135245,31.24,224.15,224.13,1.57211362]
[1759872136082,31.24,224.15,224.14,0.72]
[1759872136256,31.24,224.15,224.14,2.29211362]
[1759872137158,31.24,224.15,224.14,3.1721363]
[1759872137666,31.2,224.17,224.14,3.1721363]
[1759872137965,7.40984335,224.18,224.16,2.4521363]
[1759872138262,0.1,224.2,224.17,3.1721363]
[1759872138473,0.1,224.2,224.19,2.4521363]
[1759872142360,0.1,224.2,224.19,3.1721363]
[1759872146770,0.1,224.2,224.16,3.1721363]
[1759872146972,0.1,224.2,224.17,0.71]
[1759872147873,0.1,224.2,224.16,6.91323244]
[1759872148060,0.1,224.2,224.18,0.71]
[1759872148381,0.1,224.2,224.17,0.71]
[1759872149068,0.1,224.2,224.18,0.71]
[1759872149567,0.1,224.2,224.19,0.71]
[1759872149951,0.1,224.2,224.19,3.1621363]
[1759872154973,0.1,224.2,224.19,7.62263855]
[1759872162186,0.1,224.2,224.19,3.1621363]
[1759872162971,0.1,224.2,224.19,7.62263855]
[1759872171785,0.65,224.2,224.13,0.67]
[1759872172092,0.65,224.2,224.14,2.4521363]
[1759872172277,0.55,224.19,224.13,0.67]
[1759872172476,0.55,224.19,224.14,2.4521363]
[1759872172790,4.56042692,224.2,224.15,0.67]
[1759872172995,5.11042692,224.2,224.15,0.67]
[1759872174288,5.11042692,224.2,224.15,5.13128193]
[1759872174588,5.11042692,224.2,224.16,0.67]
[1759872174975,0.65,224.2,224.16,0.67]
[1759872177289,5.11033849,224.2,224.15,2.4521363]
[1759872177494,0.55,224.19,224.15,2.4521363]
[1759872177874,4.56033849,224.2,224.1,0.7]
[1759872177875,3.0021363,224.18,224.1,0.7]
[1759872178088,3.0021363,224.18,224.11,2.4521363]
[1759872178089,2.4521363,224.17,224.11,2.4521363]
[1759872178279,4.56033849,224.2,224.1,4.46229361]
[1759872178280,2.4521363,224.16,224.1,7.61442991]
[1759872178482,3.0021363,224.16,224.1,7.61442991]
[1759872178881,6.9131341,224.17,224.11,0.7]
[1759872179078,4.4609978,224.17,224.11,3.1521363]
[1759872179279,11.25075825,224.2,224.16,2.4521363]
[1759872179280,0.1,224.2,224.16,2.4521363]
[1759872179480,0.1,224.2,224.17,3.1521363]
[1759872179680,0.1,224.2,224.18,2.4521363]
[1759872180493,0.1,224.2,224.19,3.1521363]
[1759872181200,0.1,224.2,224.19,7.61263855]
[1759872181496,0.1,224.2,224.19,3.1521363]
[1759872181693,0.1,224.2,224.19,2.4521363]
[1759872183880,0.1,224.2,224.19,3.1521363]
[1759872184201,0.1,224.2,224.17,2.4521363]
[1759872184585,0.1,224.2,224.17,3.1521363]
[1759872184786,0.1,224.2,224.17,2.4521363]
[1759872185188,0.1,224.2,224.15,5.1612939]
[1759872185189,0.55,224.19,224.14,2.4521363]
[1759872185387,0.55,224.19,224.13,2.4521363]
[1759872185605,0.1,224.2,224.18,2.4521363]
[1759872185787,0.1,224.2,224.19,2.4521363]
[1759872187686,0.1,224.2,224.17,2.4521363]
[1759872187987,0.1,224.2,224.16,3.1521363]
[1759872188188,0.1,224.2,224.16,2.4521363]
[1759872188405,0.1,224.2,224.17,0.7]
[1759872189194,0.1,224.2,224.16,2.4521363]
[1759872189512,0.1,224.2,224.17,0.7]
[1759872189909,0.1,224.2,224.17,3.1521363]
[1759872190207,0.1,224.2,224.18,0.7]
[1759872193603,0.1,224.2,224.19,0.7]
[1759872194907,0.1,224.2,224.17,6.91296963]
[1759872195121,0.1,224.2,224.18,0.7]
[1759872196688,0.1,224.2,224.16,3.1521363]
[1759872196893,0.1,224.2,224.18,0.7]
[1759872203516,0.1,224.2,224.19,0.7]
[1759872203892,0.1,224.2,224.19,5.16050225]
[1759872204534,0.1,224.2,224.19,6.72937246]
[1759872207414,0.1,224.2,224.19,2.26887021]
[1759872208124,0.1,224.2,224.19,0.7]
[1759872208809,0.1,224.2,224.17,2.24887021]
[1759872209126,0.1,224.2,224.18,0.68]
[1759872209526,0.1,224.2,224.19,0.68]
[1759872210128,0.1,224.2,224.19,5.14050225]
[1759872211704,0.1,224.2,224.19,0.68]
[1759872217423,0.1,224.2,224.19,6.70937246]
[1759872223023,0.1,224.2,224.19,0.68]
[1759872227041,0.1,224.2,224.18,1.56887021]
[1759872227218,0.1,224.2,224.17,110.36]
[1759872227417,0.1,224.2,224.17,83.66089939]
[1759872227727,0.1,224.2,224.18,0.68]
[1759872229841,0.1,224.2,224.17,6.0297696]
[1759872230156,0.1,224.2,224.18,0.68]
[1759872231939,0.1,224.2,224.19,0.68]
[1759872233328,0.1,224.2,224.19,5.14050225]
[1759872234044,0.1,224.2,224.19,6.70937246]
[1759872235226,0.1,224.2,224.19,5.14050225]
[1759872235427,0.1,224.2,224.19,0.68]
[1759872235635,0.1,224.2,224.18,6.02955373]
[1759872235847,0.1,224.2,224.19,0.68]
[1759872237145,4.30959063,224.24,224.19,0.68]
[1759872238051,4.30959063,224.24,224.19,5.14044089]
[1759872239753,3.75959063,224.24,224.2,0.7]
[1759872242259,3.75959063,224.24,224.18,6.02937883]
[1759872242444,4.30959063,224.24,224.18,6.72937883]
[1759872242749,4.30959063,224.24,224.18,6.02937883]
[1759872242934,3.75959063,224.24,224.19,0.7]
[1759872243134,4.30959063,224.24,224.19,0.7]
[1759872244259,0.55,224.23,224.18,6.02937883]
[1759872244461,0.55,224.23,224.18,6.72937883]
[1759872245443,5.00979325,224.23,224.18,6.72937883]
[1759872246159,5.00979325,224.23,224.18,2.26887021]
[1759872246351,4.45979325,224.23,224.19,0.7]
[1759872246746,5.00979325,224.23,224.19,0.7]
[1759872246943,5.00979325,224.23,224.16,89.69036839]
[1759872247151,5.00979325,224.23,224.17,0.7]
[1759872247354,5.00979325,224.23,224.17,2.26887021]
[1759872247561,5.00979325,224.23,224.18,0.7]
[1759872247744,5.00979325,224.23,224.17,1.56887021]
[1759872247745,4.45979325,224.23,224.19,0.7]
[1759872248246,5.00979325,224.23,224.19,0.7]
[1759872249368,0.55,224.22,224.16,79.2]
[1759872249668,0.55,224.21,224.16,79.2]
[1759872249964,0.55,224.21,224.16,79.9]
[1759872250563,5.01017636,224.21,224.16,79.9]
[1759872250966,5.01017636,224.21,224.16,84.36105749]
[1759872251167,4.46017636,224.21,224.16,79.9]
[1759872251367,0.55,224.2,224.16,79.2]
[1759872251548,0.55,224.2,224.15,0.7]
[1759872251549,0.55,224.19,224.15,0.7]
[1759872251870,0.55,224.18,224.13,0.7]
[1759872252171,2.11887021,224.18,224.13,0.7]
[1759872253370,4.4609002,224.17,224.13,0.7]
[1759872253581,5.0109002,224.17,224.13,0.7]
[1759872254351,4.46050225,224.19,224.13,0.7]
[1759872254670,1.56887021,224.17,224.13,0.7]
[1759872255976,2.11887021,224.17,224.13,0.7]
[1759872256479,6.57987801,224.17,224.13,0.7]
[1759872257488,6.57987801,224.17,224.12,5.16189255]
[1759872258087,6.57987801,224.17,224.12,4.46189255]
[1759872258387,6.02958228,224.18,224.13,0.7]
[1759872258572,6.57958228,224.18,224.13,0.7]
[1759872259081,7.46345104,224.18,224.14,0.7]
[1759872261961,7.46345104,224.18,224.13,0.7]
[1759872262692,5.01071207,224.18,224.1,4.46229361]
[1759872262879,4.45993878,224.22,224.17,2.45273897]
[1759872263085,4.45993878,224.22,224.14,0.7]
[1759872263086,4.45950767,224.24,224.18,3.15273897]
[1759872263274,56.41950767,224.24,224.19,0.7]
[1759872263468,35.61950767,224.24,224.2,0.7]
[1759872263789,56.96950767,224.24,224.2,0.7]
[1759872264783,56.41950767,224.24,224.2,0.7]
[1759872266687,56.41950767,224.24,224.18,4.46053256]
[1759872266863,56.41950767,224.24,224.19,3.15273897]
[1759872267067,56.41950767,224.24,224.2,0.72]
[1759872267794,56.96950767,224.24,224.2,0.72]
[1759872269887,25.25950767,224.24,224.18,6.91343636]
[1759872270067,56.39950767,224.24,224.2,0.72]
[1759872270274,56.94950767,224.24,224.2,0.72]
[1759872271894,56.39950767,224.24,224.2,0.72]
[1759872272095,56.94950767,224.24,224.2,0.72]
[1759872272693,0.1,224.25,224.22,2.45273897]
[1759872272903,31.14,224.24,224.22,2.45273897]
[1759872273195,0.1,224.25,224.23,3.17273897]
[1759872273592,0.1,224.25,224.24,0.72]
[1759872273771,0.1,224.25,224.19,13.3949501]
[1759872273772,0.55,224.24,224.19,2.45273897]
[1759872273968,0.55,224.24,224.18,0.72]
[1759872273969,0.55,224.23,224.18,0.72]
[1759872274199,0.55,224.23,224.18,5.18068767]
[1759872274391,35.59969617,224.24,224.19,0.72]
[1759872274585,36.14969617,224.24,224.19,0.72]
[1759872274987,36.14969617,224.24,224.2,0.72]
[1759872275178,36.14969617,224.24,224.19,0.72]
[1759872277100,36.14969617,224.24,224.2,3.17273897]
[1759872277101,31.14,224.24,224.2,3.17273897]
[1759872277298,0.1,224.25,224.22,2.45273897]
[1759872277473,31.24,224.25,224.22,2.45273897]
[1759872277679,31.24,224.25,224.23,0.72]
[1759872278897,31.24,224.25,224.22,2.45273897]
[1759872279196,0.1,224.25,224.24,3.17273897]
[1759872279391,0.1,224.25,224.24,0.72]
[1759872280974,0.1,224.25,224.23,0.71]
[1759872284185,0.1,224.25,224.22,81.65273897]
[1759872284407,0.1,224.25,224.23,0.71]
[1759872285310,0.1,224.25,224.24,0.71]
[1759872287295,0.1,224.25,224.22,84.14857284]
[1759872287502,0.1,224.25,224.22,86.82258377]
[1759872287706,0.1,224.25,224.23,0.71]
[1759872288097,0.1,224.25,224.24,0.71]
[1759872291894,0.1,224.25,224.22,79.2]
[1759872291895,0.1,224.25,224.22,79.91]
[1759872292094,0.1,224.25,224.23,0.71]
[1759872293418,0.55,224.24,224.22,79.2]
[1759872293594,31.69,224.24,224.22,79.2]
[1759872293794,34.14273897,224.24,224.22,79.2]
[1759872294116,33.59273897,224.24,224.22,79.2]
[1759872294297,0.55,224.23,224.22,79.2]
[1759872294718,38.05235722,224.24,224.22,79.2]
[1759872294917,38.60235722,224.24,224.22,79.2]
[1759872295994,38.60235722,224.24,224.19,0.71]
[1759872296211,35.59961825,224.24,224.2,0.71]
[1759872296415,31.14,224.24,224.21,0.71]
[1759872296729,31.14,224.24,224.19,4.46036862]
[1759872297023,31.14,224.24,224.2,0.71]
[1759872298692,35.5995705,224.24,224.2,0.71]
[1759872300091,0.1,224.25,224.2,5.17018785]
[1759872300298,31.14,224.24,224.21,0.65]
[1759872300695,0.1,224.25,224.2,4.46025897]
[1759872300902,31.14,224.24,224.22,0.65]
[1759872301107,31.14,224.24,224.23,0.65]
[1759872301504,0.1,224.25,224.23,3.10273897]
[1759872301705,0.1,224.25,224.24,2.45273897]
[1759872302002,0.1,224.25,224.24,3.10273897]
[1759872302209,0.1,224.25,224.24,7.56224664]
[1759872306821,0.1,224.25,224.24,5.10950767]
[1759872307014,0.1,224.25,224.24,3.10273897]
[1759872307409,0.1,224.25,224.24,7.56224664]
[1759872308221,0.1,224.25,224.22,37.36547697]
[1759872308407,0.1,224.25,224.22,0.65]
[1759872309109,0.1,224.25,224.22,7.56255019]
[1759872309725,0.1,224.25,224.23,0.65]
[1759872311127,0.1,224.25,224.24,3.10273897]
[1759872312816,0.1,224.25,224.24,0.65]
[1759872313005,0.1,224.25,224.22,4.4598844]
[1759872313334,0.1,224.25,224.23,0.65]
[1759872314825,0.1,224.25,224.24,0.65]
[1759872316540,0.1,224.25,224.23,0.65]
[1759872318730,0.55,224.24,224.22,79.2]
[1759872319546,6.6781896,224.25,224.22,79.2]
[1759872320430,6.1281896,224.25,224.22,79.2]
[1759872320647,6.6781896,224.25,224.22,79.2]
[1759872321932,0.55,224.24,224.22,79.2]
[1759872322452,37.2481896,224.25,224.22,79.2]
[1759872322754,37.2481896,224.25,224.2,0.65]
[1759872322755,37.7981896,224.25,224.2,0.65]
[1759872322920,31.22,224.25,224.21,0.65]
[1759872323129,0.1,224.25,224.21,0.65]
[1759872323436,3.1050814,224.25,224.21,0.65]
[1759872324348,3.1050814,224.25,224.21,5.11007696]
[1759872324642,0.1,224.25,224.22,0.65]
[1759872324847,0.1,224.25,224.23,0.65]
[1759872325544,4.55932247,224.25,224.21,0.65]
[1759872326053,0.1,224.25,224.22,0.65]
[1759872326247,0.1,224.25,224.23,0.65]
[1759872328651,4.55933723,224.25,224.23,0.65]
[1759872329150,4.55933723,224.25,224.2,79.2]
[1759872329360,0.55,224.24,224.2,79.2]
[1759872329656,1.56881637,224.23,224.2,79.2]
[1759872330448,31.12,224.24,224.21,0.71]
[1759872330650,35.57963585,224.24,224.21,0.71]
[1759872331457,35.57963585,224.24,224.2,79.2]
[1759872331655,35.57963585,224.24,224.2,79.91]
[1759872334543,35.57963585,224.24,224.2,0.71]
[1759872334866,35.57963585,224.24,224.21,0.71]
[1759872335165,31.12,224.24,224.21,0.71]
[1759872335471,35.57957515,224.24,224.21,0.71]
[1759872337459,35.57957515,224.24,224.17,83.6609002]
[1759872337651,35.57957515,224.24,224.18,0.71]
[1759872338665,36.12957515,224.24,224.18,0.71]
[1759872338861,2.11881637,224.23,224.16,0.71]
[1759872339041,0.55,224.22,224.16,0.71]
[1759872339465,4.46010436,224.21,224.16,0.71]
[1759872339765,31.67,224.2,224.13,0.69]
[1759872340869,4.46050225,224.19,224.13,5.15159369]
[1759872341162,4.46050225,224.19,224.14,0.69]
[1759872342039,0.55,224.18,224.14,0.69]
[1759872342238,4.46050225,224.19,224.12,17.71372175]
[1759872342239,0.55,224.17,224.12,0.69]
[1759872342545,6.57931862,224.19,224.13,0.69]
[1759872345254,17.73057425,224.19,224.13,0.69]
[1759872345465,1.56881637,224.17,224.11,0.69]
[1759872345670,31.12,224.16,224.11,0.69]
[1759872345967,31.12,224.16,224.12,0.69]
[1759872346154,35.58113545,224.16,224.12,0.69]
[1759872346771,35.58113545,224.16,224.11,4.46203615]
[1759872346974,35.58113545,224.16,224.12,0.69]
[1759872347143,35.58113545,224.16,224.13,0.69]
[1759872349571,31.12,224.16,224.14,0.69]
[1759872349770,31.12,224.16,224.15,0.69]
[1759872351158,31.12,224.16,224.13,0.69]
[1759872351371,31.12,224.16,224.14,0.69]
[1759872355488,4.46073197,224.18,224.12,4.46178607]
[1759872355663,2.21881637,224.25,224.16,1.56881637]
[1759872355863,31.12,224.24,224.18,1.56881637]
[1759872356088,20.8,224.21,224.19,0.69]
[1759872356377,31.12,224.22,224.2,1.56881637]
[1759872356584,31.12,224.22,224.21,0.69]
[1759872357275,4.55933474,224.25,224.21,0.69]
[1759872357465,31.12,224.24,224.22,1.56881637]
[1759872357662,31.12,224.24,224.22,2.28881637]
[1759872359491,35.57953619,224.24,224.21,1.56881637]
[1759872359679,35.57953619,224.24,224.21,2.28881637]
[1759872360491,0.1,224.25,224.21,2.28881637]
[1759872360663,0.1,224.25,224.23,1.56881637]
[1759872361191,0.1,224.25,224.24,0.72]
[1759872362792,0.1,224.25,224.21,2.28881637]
[1759872362965,4.55942139,224.25,224.21,2.28881637]
[1759872363365,4.55942139,224.25,224.21,0.72]
[1759872363883,22.36881637,224.23,224.14,0.72]
[1759872364087,1.56881637,224.2,224.14,0.72]
[1759872364383,31.1,224.19,224.14,0.72]
[1759872364565,31.1,224.19,224.15,0.72]
[1759872364885,31.1,224.19,224.16,0.72]
[1759872365067,31.1,224.19,224.14,5.18149727]
[1759872365270,31.1,224.19,224.15,0.72]
[1759872366080,35.56056341,224.19,224.15,0.72]
[1759872368173,36.11056341,224.19,224.13,5.18168521]
[1759872370191,36.11056341,224.19,224.13,0.72]
[1759872370385,36.11056341,224.19,224.12,5.1818599]
[1759872370892,31.1,224.19,224.13,0.72]
[1759872371470,0.55,224.23,224.18,1.56881637]
[1759872371673,4.56168521,224.26,224.2,1.56881637]
[1759872371674,3.65141968,224.26,224.2,1.56881637]
[1759872371878,52.0,224.25,224.2,1.56881637]
[1759872372080,52.55,224.25,224.2,1.56881637]
[1759872372576,52.55,224.25,224.2,2.28881637]
[1759872373283,57.00939768,224.25,224.2,2.28881637]
[1759872373993,0.55,224.24,224.17,0.72]
[1759872374196,0.55,224.24,224.18,1.56881637]
[1759872374890,35.65939768,224.25,224.19,0.72]
[1759872375799,36.20939768,224.25,224.19,0.72]
[1759872376694,36.20939768,224.25,224.19,5.18050089]
[1759872377393,35.65939768,224.25,224.19,4.46050089]
[1759872377598,35.65939768,224.25,224.19,5.18050089]
[1759872381079,35.65939768,224.25,224.19,7.63133127]
[1759872381888,36.20939768,224.25,224.19,7.63133127]
[1759872384221,0.55,224.24,224.19,2.45083038]
[1759872384510,0.55,224.24,224.19,3.17083038]
[1759872385501,35.65939768,224.25,224.2,0.72]
[1759872385689,36.20939768,224.25,224.2,0.72]
[1759872386394,0.55,224.24,224.2,0.72]
[1759872386592,35.65939768,224.25,224.21,0.72]
[1759872386897,36.20939768,224.25,224.19,7.63127538]
[1759872387089,4.55939768,224.25,224.2,0.7]
[1759872387291,5.10939768,224.25,224.21,0.7]
[1759872387605,4.55939768,224.25,224.21,0.7]
[1759872388600,4.55939768,224.25,224.19,86.11127538]
[1759872388905,4.55939768,224.25,224.2,0.7]
[1759872389209,4.55939768,224.25,224.21,0.7]
[1759872389408,0.1,224.25,224.21,0.7]
[1759872389608,0.1,224.25,224.23,2.45083038]
[1759872389909,0.1,224.25,224.24,0.7]
[1759872390109,0.1,224.25,224.24,5.15950767]
[1759872390711,0.65,224.25,224.19,0.7]
[1759872390901,31.1,224.24,224.19,0.7]
[1759872391107,31.1,224.24,224.2,0.7]
[1759872392018,36.10955802,224.24,224.19,4.46045928]
[1759872392195,36.10955802,224.24,224.19,5.16045928]
[1759872393413,31.65,224.24,224.19,5.16045928]
[1759872395302,31.65,224.24,224.19,4.46045928]
[1759872395499,31.65,224.24,224.19,5.16045928]
[1759872397107,31.65,224.24,224.18,4.46070122]
[1759872397313,31.65,224.24,224.2,0.7]
[1759872398216,0.1,224.25,224.2,4.4602941]
[1759872398416,31.75,224.25,224.21,0.7]
[1759872398632,0.55,224.24,224.18,3.15083038]
[1759872398999,0.55,224.24,224.18,0.7]
[1759872399615,0.55,224.24,224.19,2.45083038]
[1759872399817,0.55,224.24,224.19,3.12083038]
[1759872400919,0.55,224.24,224.2,0.67]
[1759872401423,36.20937637,224.25,224.2,0.67]
[1759872401619,0.55,224.24,224.19,2.45083038]
[1759872401819,0.55,224.24,224.19,0.67]
[1759872402126,0.55,224.24,224.2,0.67]
[1759872403423,35.65937637,224.25,224.2,0.67]
[1759872403618,36.20937637,224.25,224.2,0.67]
[1759872403804,36.20937637,224.25,224.18,2.45083038]
[1759872403805,0.55,224.24,224.18,3.12083038]
[1759872404012,3.55462003,224.24,224.19,0.67]
[1759872404216,0.55,224.24,224.19,0.67]
[1759872405235,5.00964789,224.24,224.19,0.67]
[1759872405406,5.00964789,224.24,224.18,6.91148474]
[1759872405730,5.00964789,224.24,224.19,0.67]
[1759872406230,5.00964789,224.24,224.2,0.67]
[1759872406632,38.110227,224.25,224.18,6.91148474]
[1759872406820,35.65939662,224.25,224.21,0.67]
[1759872407021,36.20939662,224.25,224.19,0.67]
[1759872407338,36.20939662,224.25,224.19,5.13033896]
[1759872407519,36.20939662,224.25,224.2,0.67]
[1759872408631,35.65939662,224.25,224.19,4.46033896]
[1759872408930,31.2,224.25,224.21,0.67]
[1759872409114,35.6593103,224.25,224.21,0.67]
[1759872409430,35.6593103,224.25,224.22,0.67]
[1759872410034,35.6593103,224.25,224.21,0.67]
[1759872411031,4.5593103,224.25,224.21,0.67]
[1759872411239,35.6593103,224.25,224.21,0.67]
[1759872411938,36.2093103,224.25,224.21,0.67]
[1759872412128,35.6593103,224.25,224.21,0.67]
[1759872412515,35.6593103,224.25,224.2,6.91110922]
[1759872412736,35.6593103,224.25,224.21,0.67]
[1759872414232,31.2,224.25,224.2,6.91110922]
[1759872414540,31.18,224.25,224.21,0.67]
[1759872415034,31.18,224.25,224.22,0.67]
[1759872417432,31.18,224.25,224.2,6.91110922]
[1759872417632,35.63932683,224.25,224.2,0.68]
[1759872418143,35.63932683,224.25,224.21,0.68]
[1759872418519,36.18932683,224.25,224.21,0.68]
[1759872420032,35.63932683,224.25,224.21,0.68]
[1759872420934,4.55932683,224.25,224.21,0.68]
[1759872421141,0.1,224.25,224.21,5.13998523]
[1759872421330,3.10831514,224.25,224.21,4.45998523]
[1759872421527,3.10831514,224.25,224.22,0.68]
[1759872421734,7.56766757,224.25,224.22,0.68]
[1759872422836,7.56766757,224.25,224.2,7.59112285]
[1759872423132,7.56766757,224.25,224.21,0.68]
[1759872427742,0.55,224.24,224.18,5.14052335]
[1759872427936,0.55,224.24,224.18,7.59135373]
[1759872428135,0.55,224.24,224.19,0.68]
[1759872428341,0.55,224.24,224.2,0.68]
[1759872429446,8.11766757,224.25,224.19,4.46044691]
[1759872429650,8.11766757,224.25,224.2,0.68]
[1759872429849,3.10831514,224.25,224.2,0.68]
[1759872430556,3.10831514,224.25,224.2,3.13083038]
[1759872430742,0.1,224.25,224.21,0.68]
[1759872431639,0.1,224.25,224.21,5.14009578]
[1759872431954,0.1,224.25,224.22,0.68]
[1759872432158,0.1,224.25,224.23,0.68]
[1759872433952,4.5593198,224.25,224.23,0.68]
[1759872434158,4.5593198,224.25,224.21,0.68]
[1759872434531,5.1093198,224.25,224.21,0.68]
[1759872434738,7.56744731,224.25,224.21,0.68]
[1759872434941,0.55,224.24,224.16,31.1]
[1759872435137,31.08,224.23,224.17,0.68]
[1759872435962,35.53972169,224.23,224.17,7.59154779]
[1759872436266,35.53972169,224.23,224.18,0.68]
[1759872436763,36.08972169,224.23,224.18,0.68]
[1759872437163,36.08972169,224.23,224.18,5.14069419]
[1759872437351,0.55,224.22,224.17,2.45083038]
[1759872437551,0.55,224.22,224.17,3.13083038]
[1759872437951,0.55,224.22,224.18,0.68]
[1759872438252,35.53972169,224.23,224.18,0.68]
[1759872438450,36.08972169,224.23,224.18,0.68]
[1759872439767,35.53972169,224.23,224.18,0.68]
[1759872440063,0.55,224.22,224.18,0.68]
[1759872441641,0.55,224.21,224.15,0.68]
[1759872442250,33.53083038,224.2,224.12,0.68]
[1759872442567,0.55,224.19,224.12,0.68]
[1759872442742,33.53083038,224.2,224.14,2.45083038]
[1759872442743,31.08,224.2,224.14,2.45083038]
[1759872442942,36.09042345,224.2,224.14,7.59228026]
[1759872443144,36.09042345,224.2,224.14,5.14144988]
[1759872444147,11.25531257,224.25,224.19,1.56924621]
[1759872444344,11.25531257,224.25,224.24,1.56924621]
[1759872444549,3.10533975,224.25,224.24,2.24924621]
[1759872444749,0.1,224.25,224.24,2.24924621]
[1759872448474,0.1,224.25,224.24,0.68]
[1759872448673,0.1,224.25,224.24,2.24924621]
[1759872448852,0.1,224.25,224.24,6.70875388]
[1759872453480,0.1,224.25,224.24,85.90875388]
[1759872456371,0.1,224.25,224.24,116.96875388]
[1759872456683,0.1,224.25,224.24,118.75434859]
[1759872462093,0.1,224.25,224.24,129.6308238]
[1759872471291,0.1,224.27,224.26,89.87647521]
[1759872471491,0.1,224.27,224.26,122.50572142]
[1759872471794,0.1,224.27,224.26,123.19572142]
[1759872471997,0.1,224.27,224.26,124.98091768]
[1759872479803,0.1,224.27,224.26,129.44002764]
[1759872483591,0.1,224.27,224.26,129.42002764]
[1759872487012,0.1,224.27,224.26,129.43002764]
[1759872489718,0.1,224.27,224.26,98.39002764]
[1759872489907,0.1,224.27,224.26,129.43002764]
[1759872490803,0.1,224.27,224.26,98.39002764]
[1759872491008,0.1,224.27,224.26,129.43002764]
[1759872495603,0.1,224.27,224.26,117.85355243]
[1759872496209,0.1,224.27,224.26,118.55355243]
[1759872499502,0.1,224.28,224.26,118.55355243]
[1759872499503,0.1,224.28,224.27,10.87647521]
[1759872499706,0.1,224.29,224.27,19.42270626]
[1759872499907,0.1,224.29,224.28,71.26270626]
[1759872500122,0.1,224.29,224.28,73.04774318]
[1759872501627,0.1,224.29,224.28,77.5064555]
[1759872501826,0.1,224.29,224.28,81.03631662]
[1759872502934,0.1,224.29,224.28,74.05933178]
[1759872503116,0.1,224.29,224.28,75.63806195]
[1759872504029,0.1,224.29,224.28,154.63806195]
[1759872504927,0.1,224.29,224.28,123.59806195]
[1759872505109,0.1,224.29,224.28,154.63806195]
[1759872505310,0.1,224.29,224.28,123.59806195]
[1759872505523,0.1,224.29,224.28,157.08603833]
[1759872505920,0.1,224.29,224.28,152.19008557]
[1759872506130,0.1,224.29,224.28,157.08603833]
[1759872507706,1e-08,224.29,224.28,157.08603833]
[1759872507923,1e-08,224.3,224.28,136.28603833]
[1759872508226,0.1,224.31,224.3,89.8764752]
[1759872508423,0.1,224.31,224.3,127.80276633]
[1759872508632,0.1,224.31,224.3,128.48276633]
[1759872509227,0.1,224.31,224.3,130.26756431]